bitfinex/quotes_ETHUSD_20240729
["timestamp","ask_amount","ask_price","bid_price","bid_amount"]
[1722264838522,1.04045724,3328.3,3327.4,3.00526]
[1722264838523,1.04045724,3328.1,3327.6,3.00515]
[1722264838723,1.04045724,3328.2,3327.6,3.606191]
[1722264838967,3.00449,3328.4,3327.6,3.606191]
[1722264839185,4.04534066,3328.3,3327.6,0.601041]
[1722264839335,1.04074066,3328.2,3327.6,0.601041]
[1722264839536,1.04074066,3328.1,3327.3,3.00538]
[1722264839738,4.56133234,3328.7,3327.7,3.00507]
[1722264839957,4.56133234,3328.7,3327.8,3.00497]
[1722264839958,1.04072126,3328.6,3327.8,3.00497]
[1722264840167,1.04072126,3328.5,3327.9,3.00484]
[1722264840338,3.00426,3328.6,3327.9,3.00484]
[1722264840686,1.04062713,3328.5,3327.9,3.305324]
[1722264840899,5.41065,3328.9,3328.1,3.0047]
[1722264841035,4.04466419,3328.8,3328.1,3.00465]
[1722264841234,1.04058419,3328.7,3328.1,3.00465]
[1722264841434,1.04058419,3328.7,3328.1,3.6356484]
[1722264841630,1.57228545,3328.6,3327.6,3.00511]
[1722264841883,1.04058419,3328.5,3327.8,3.00491]
[1722264842177,1.04068029,3328.4,3328.1,3.00465]
[1722264842466,1.04068029,3328.4,3327.9,0.06009331]
[1722264842467,6.97043146,3328.9,3327.9,3.06491331]
[1722264842671,3.00422,3328.7,3327.7,3.005]
[1722264842892,3.00422,3328.7,3327.9,3.00481]
[1722264842893,1.04056263,3328.6,3327.9,3.00481]
[1722264843178,1.04056263,3328.6,3328.1,3.00469]
[1722264843378,1.04056263,3328.7,3328.1,3.00469]
[1722264843535,1.04056263,3328.5,3327.9,3.00482]
[1722264843736,3.00422,3328.7,3327.9,3.690855]
[1722264843945,1.04056977,3328.6,3327.9,3.690855]
[1722264844146,1.04056977,3328.6,3327.9,0.686035]
[1722264844335,1.0405876,3328.5,3327.9,0.686035]
[1722264844531,1.0405876,3328.5,3327.8,3.55498]
[1722264844532,1.56108715,3328.8,3328.0,3.4288315]
[1722264844731,1.04058062,3328.7,3328.0,0.4241015]
[1722264844950,1.04058062,3328.7,3327.8,0.55]
[1722264845153,3.00441,3328.5,3327.4,6.00531]
[1722264845483,1.04059952,3328.4,3327.6,3.00511]
[1722264845648,1.04059952,3328.4,3327.8,3.0049]
[1722264845852,3.00436,3328.5,3327.8,3.0049]
[1722264846183,1.04059952,3328.4,3327.6,3.00508]
[1722264846421,1.04059952,3328.4,3327.8,3.00491]
[1722264846678,1.04059952,3328.4,3327.7,3.360518]
[1722264846840,4.04499952,3328.5,3327.8,3.00493]
[1722264847179,1.04059952,3328.4,3327.8,3.00493]
[1722264847875,4.04503952,3328.4,3327.7,3.360578]
[1722264848090,1.04059952,3328.4,3327.8,3.6415368]
[1722264848252,1.04062449,3328.3,3327.8,3.6414868]
[1722264848440,1.56113586,3328.7,3328.0,3.00477]
[1722264848777,4.04488352,3328.6,3327.8,3.00491]
[1722264848997,1.04062352,3328.5,3327.8,3.00491]
[1722264849148,1.04062352,3328.4,3327.8,3.00491]
[1722264849350,1.04062352,3328.5,3327.8,0.300491]
[1722264849554,1.04062352,3328.4,3328.1,3.00466]
[1722264849787,1.04062352,3328.6,3327.9,6.06974637]
[1722264849938,1.04062352,3328.3,3328.0,3.00478]
[1722264850145,4.56521586,3328.8,3328.0,3.00478]
[1722264850339,1.0405964,3328.7,3328.0,3.00478]
[1722264850572,1.0405964,3328.6,3328.0,3.555759]
[1722264850739,1.0405964,3328.6,3327.5,0.55]
[1722264850740,4.0449564,3328.5,3327.8,3.00493]
[1722264850946,1.0405964,3328.4,3327.6,3.00513]
[1722264851145,1.0405964,3328.4,3326.8,3.00584]
[1722264851146,3.00524,3327.6,3326.8,3.00584]
[1722264851439,3.00554,3327.2,3326.6,5.522467]
[1722264851681,1.04094943,3327.1,3326.6,5.522467]
[1722264851981,1.04102879,3327.0,3326.6,5.522467]
[1722264852305,1.04102879,3326.9,3326.6,5.522467]
[1722264852514,4.04674879,3327.0,3326.2,3.00637]
[1722264852845,4.04674879,3327.0,3326.3,0.8528837]
[1722264852846,1.04102879,3326.9,3326.3,0.8528837]
[1722264852982,1.04102879,3326.9,3326.4,3.00624]
[1722264853322,4.56632381,3327.2,3326.4,3.00624]
[1722264853323,1.04102879,3326.8,3326.4,3.00624]
[1722264853531,1.04102879,3327.0,3326.4,0.06012014]
[1722264853679,1.04104752,3327.3,3326.7,3.00596]
[1722264853876,1.04103333,3327.2,3326.8,3.06595502]
[1722264854106,3.00517,3327.6,3326.6,3.006]
[1722264854314,1.04100544,3327.5,3326.7,0.06011272]
[1722264854628,1.04100544,3327.5,3327.0,3.00564]
[1722264854629,1.0409964,3327.5,3327.0,3.00564]
[1722264854773,1.0409964,3327.4,3327.0,3.00564]
[1722264854973,1.0409964,3327.3,3326.8,3.55582]
[1722264855220,1.0409964,3327.3,3327.0,3.00562]
[1722264855420,3.95202043,3327.8,3327.1,3.00561]
[1722264855621,2.6018614,3327.7,3327.1,3.00561]
[1722264855822,1.04094097,3327.6,3326.9,3.00578]
[1722264856034,1.04094097,3327.5,3326.8,0.55]
[1722264856415,1.04094097,3327.4,3326.7,3.55]
[1722264856732,1.04094097,3327.3,3326.7,3.0]
[1722264856888,1.04094097,3327.3,3326.6,3.0]
[1722264857087,1.04094097,3327.3,3326.4,3.0]
[1722264857402,3.00561,3327.2,3326.5,3.0]
[1722264857626,1.04102774,3327.1,3326.4,3.0]
[1722264857800,1.04102774,3327.1,3326.4,3.98656137]
[1722264858189,1.04102774,3327.1,3326.6,3.00606]
[1722264858529,3.00541,3327.4,3326.6,3.00606]
[1722264858696,1.04101585,3327.3,3326.6,3.00606]
[1722264858880,3.00541,3327.4,3326.4,6.99276137]
[1722264859085,4.04643282,3327.3,3326.4,6.99276137]
[1722264859286,4.04657282,3327.2,3326.4,3.98656137]
[1722264859590,4.04669603,3327.1,3326.4,3.0]
[1722264859938,1.04104603,3327.0,3326.3,3.0]
[1722264860087,4.04676603,3327.0,3326.3,3.0]
[1722264860290,3.4103966,3327.0,3326.2,3.0]
[1722264860546,3.00593,3326.8,3326.2,3.0]
[1722264860695,0.4046766,3327.0,3326.2,3.0]
[1722264861044,3.00538,3327.4,3326.1,3.0]
[1722264861227,3.00588,3326.9,3326.2,0.55]
[1722264861405,3.00565,3327.1,3325.7,7.462467]
[1722264861591,3.00623,3326.5,3325.7,7.462467]
[1722264861791,3.00601,3326.7,3325.7,10.469347]
[1722264862039,1.55950905,3327.1,3325.7,7.462467]
[1722264862040,3.00644,3326.2,3325.7,7.462467]
[1722264862787,3.00644,3326.2,3325.8,3.0]
[1722264863084,3.00627,3326.4,3325.8,3.0]
[1722264863457,3.00594,3326.8,3325.9,3.0668324]
[1722264863591,2.34526281,3326.7,3326.0,3.61325324]
[1722264863951,1.56008485,3327.2,3326.4,3.00619]
[1722264864086,1.87210183,3327.5,3326.5,0.06011592]
[1722264864087,2.34531631,3327.1,3326.5,0.06011592]
[1722264864287,1.30429051,3327.0,3326.4,3.00623]
[1722264864486,6.54719,3327.6,3326.6,3.00601]
[1722264864734,3.00535,3327.4,3326.7,0.06011318]
[1722264865030,1.30434203,3327.3,3326.7,0.06011318]
[1722264865238,1.30434203,3327.2,3326.8,0.55]
[1722264865535,3.542,3327.6,3326.8,0.61010992]
[1722264865735,2.34516709,3327.5,3326.8,0.61010992]
[1722264865884,1.30419355,3327.4,3326.8,3.61592992]
[1722264866086,3.00504,3327.8,3326.9,3.36737299]
[1722264866419,2.3463105,3327.7,3326.9,0.36159299]
[1722264866644,1.30538089,3327.6,3326.9,0.36159299]
[1722264866950,1.30538089,3327.5,3327.0,0.06010938]
[1722264867231,0.01,3328.0,3327.9,3.00489]
[1722264867537,0.01,3328.0,3327.9,6.310269]
[1722264867744,0.01,3328.0,3327.9,3.855379]
[1722264867941,0.01,3328.0,3327.9,6.855379]
[1722264868434,0.01,3328.0,3327.9,9.860269]
[1722264869012,0.01,3328.0,3327.9,12.296669]
[1722264869888,0.01,3328.0,3327.9,6.855379]
[1722264870327,0.01,3328.0,3327.9,9.860269]
[1722264870721,7.31,3329.2,3328.4,3.00444]
[1722264870889,2.34875352,3329.1,3328.4,0.06007976]
[1722264871090,1.30825671,3329.0,3328.3,3.00453]
[1722264871394,8.10602847,3329.6,3328.4,0.61007977]
[1722264871595,3.00365,3329.3,3328.4,0.61007977]
[1722264871831,2.3486564,3329.2,3328.4,0.61007977]
[1722264872036,1.30822581,3329.1,3328.4,0.61007977]
[1722264872259,3.00347,3329.5,3328.5,0.39150628]
[1722264872542,2.34874616,3329.4,3328.4,0.55]
[1722264872833,2.34874616,3329.3,3328.6,3.00426]
[1722264872993,1.30831048,3329.2,3328.7,0.06007631]
[1722264873197,6.54536,3329.6,3328.7,0.06007631]
[1722264873400,3.15916103,3329.5,3328.7,3.06423631]
[1722264873597,3.542,3329.6,3328.8,0.61007312]
[1722264873598,1.308212,3329.4,3328.8,0.61007312]
[1722264873849,3.542,3329.6,3328.8,0.61007312]
[1722264874079,2.34822765,3329.5,3328.8,0.61007312]
[1722264874340,3.542,3329.6,3328.8,0.61007312]
[1722264874491,3.542,3329.6,3329.0,3.00387]
[1722264874697,3.542,3329.6,3328.8,0.55]
[1722264874698,1.30737831,3329.5,3328.8,0.55]
[1722264874929,3.542,3329.6,3328.8,0.55]
[1722264875242,1.30723132,3329.5,3328.8,0.55]
[1722264875400,1.30723132,3329.5,3328.6,3.55]
[1722264875401,4.31074132,3329.5,3328.6,3.55]
[1722264875601,1.30723132,3329.4,3328.7,3.00417]
[1722264875796,3.00351,3329.5,3328.8,0.55]
[1722264876013,1.30818304,3329.4,3328.6,3.55]
[1722264876339,1.30818304,3329.4,3328.6,6.55423]
[1722264876548,3.958414,3329.5,3328.6,3.55]
[1722264876748,4.31132778,3329.4,3328.6,3.55]
[1722264876895,0.954884,3329.5,3328.6,3.55]
[1722264877093,0.954884,3329.5,3328.7,3.06416225]
[1722264877336,3.542,3329.6,3328.8,0.55]
[1722264877554,3.542,3329.6,3328.9,0.06007183]
[1722264877710,0.01,3330.0,3328.9,0.06007183]
[1722264877711,3.00309,3329.9,3329.0,3.55382]
[1722264877937,4.31011904,3329.8,3329.1,0.0600701]
[1722264878135,3.01307,3330.0,3329.1,0.0600701]
[1722264878455,2.26292468,3329.9,3329.1,0.0600701]
[1722264878656,0.955801,3329.9,3329.1,0.0600701]
[1722264878841,3.958931,3329.9,3329.1,0.0600701]
[1722264880541,1.3083109,3329.8,3329.0,0.55]
[1722264880866,1.3083109,3329.8,3328.5,8.526807]
[1722264880867,3.542,3329.6,3328.8,3.0]
[1722264881029,3.542,3329.6,3328.5,5.522467]
[1722264881030,3.00379,3329.2,3328.5,5.522467]
[1722264881236,3.00379,3329.2,3328.2,3.00461]
[1722264881433,3.00395,3329.0,3328.2,0.8527077]
[1722264881676,3.00382,3329.1,3328.2,0.8527077]
[1722264881888,3.00382,3329.1,3328.2,3.8573277]
[1722264882242,3.00373,3329.2,3328.2,3.8573277]
[1722264882480,3.00373,3329.2,3328.3,3.00453]
[1722264882752,6.00719,3329.4,3328.4,6.55443]
[1722264883089,3.00366,3329.3,3328.4,6.55443]
[1722264883291,3.00372,3329.2,3328.4,3.55]
[1722264883475,3.542,3329.6,3328.4,3.55]
[1722264883476,3.00368,3329.3,3328.4,0.55]
[1722264883639,3.00389,3329.1,3328.4,0.55]
[1722264883838,3.004,3328.9,3328.4,0.55]
[1722264884052,3.00419,3328.7,3328.1,3.0]
[1722264884283,3.00419,3328.7,3327.7,1.94]
[1722264884284,3.00451,3328.4,3327.7,1.94]
[1722264884437,3.542,3328.6,3327.7,1.94]
[1722264884751,3.542,3328.1,3327.4,5.522467]
[1722264884956,3.005,3327.8,3326.9,6.00572]
[1722264885182,3.542,3328.1,3326.9,4.3803587]
[1722264885339,3.00516,3327.7,3326.9,3.0]
[1722264885883,3.00532,3327.5,3326.9,3.0]
[1722264886045,3.00532,3327.5,3326.4,5.522467]
[1722264886394,3.00532,3327.5,3326.4,8.0146457]
[1722264886395,3.00558,3327.2,3326.4,8.0146457]
[1722264886682,0.300532,3327.5,3326.4,8.0146457]
[1722264886683,3.00562,3327.1,3326.4,8.0146457]
[1722264886902,3.00562,3327.1,3326.4,2.4921787]
[1722264887109,3.00571,3327.0,3326.3,1.94]
[1722264887664,3.00587,3326.9,3326.3,1.94]
[1722264887862,6.54767,3327.1,3326.3,1.94]
[1722264888590,3.542,3327.1,3326.3,1.94]
[1722264888910,3.542,3327.6,3326.3,1.94]
[1722264889206,6.54717,3327.6,3326.7,3.00598]
[1722264889414,3.542,3327.6,3326.7,3.00598]
[1722264889910,3.542,3327.6,3326.9,3.00579]
[1722264890111,3.01687,3328.0,3327.0,3.6157445]
[1722264890308,1.30502323,3327.9,3327.0,0.6101045]
[1722264890467,3.01681,3328.0,3327.0,0.6101045]
[1722264890818,3.01681,3328.0,3327.0,3.55566]
[1722264890819,3.0049,3327.9,3327.0,3.55566]
[1722264890987,3.00499,3327.8,3327.0,0.55]
[1722264891167,0.012,3328.0,3327.1,0.06010412]
[1722264891507,0.012,3328.0,3327.1,0.42167853]
[1722264891826,3.01681,3328.0,3327.1,3.42727853]
[1722264891968,0.012,3328.0,3327.1,0.36157441]
[1722264892168,0.012,3328.0,3327.2,0.06010396]
[1722264892383,3.01689,3328.0,3327.2,0.06010396]
[1722264892704,1.30661575,3327.9,3326.7,3.0]
[1722264892862,3.00544,3327.3,3326.7,3.0]
[1722264893082,3.00558,3327.2,3326.5,3.0]
[1722264893266,3.542,3327.6,3326.5,3.0]
[1722264893475,3.00585,3326.9,3326.2,3.0]
[1722264893710,3.00592,3326.8,3326.2,3.0]
[1722264894084,3.00592,3326.8,3326.1,3.0]
[1722264894269,3.00607,3326.6,3326.1,3.0]
[1722264894713,3.00592,3326.8,3326.1,3.0]
[1722264895024,3.542,3327.1,3326.1,3.0]
[1722264895166,6.87854251,3327.0,3326.1,3.0]
[1722264895365,3.00634,3326.3,3326.1,3.0]
[1722264895710,3.00634,3326.3,3325.6,5.522467]
[1722264895711,3.00635,3326.3,3325.6,5.522467]
[1722264896007,3.00622,3326.5,3325.6,5.522467]
[1722264896179,3.542,3326.6,3325.6,8.529357]
[1722264896379,6.54809,3326.6,3325.7,1.1536407]
[1722264896575,6.54809,3326.6,3325.7,7.1605207]
[1722264897199,3.542,3326.6,3325.8,3.00676]
[1722264897379,3.542,3326.6,3325.9,3.0]
[1722264897709,6.54808,3326.6,3325.9,3.0]
[1722264897910,6.54808,3326.6,3325.8,3.0]
[1722264898087,3.00616,3326.5,3325.8,0.96761077]
[1722264898407,3.00616,3326.5,3325.7,3.0]
[1722264898408,3.00637,3326.3,3325.7,3.0]
[1722264899108,3.00618,3326.5,3325.7,3.0]
[1722264899911,3.00601,3326.7,3325.7,6.00683]
[1722264900212,3.00608,3326.6,3325.7,6.00683]
[1722264900370,3.00601,3326.7,3325.7,6.00688]
[1722264900571,3.00657,3326.1,3325.7,3.0]
[1722264900813,3.00657,3326.1,3325.0,2.3344]
[1722264900814,3.542,3326.1,3324.9,5.522467]
[1722264901020,3.0067,3325.9,3325.0,3.00751]
[1722264901198,3.00662,3326.0,3325.1,3.00742]
[1722264901385,3.00662,3326.0,3325.1,3.608913]
[1722264901581,3.542,3326.1,3325.2,3.00732]
[1722264901784,3.00627,3326.4,3325.5,3.00706]
[1722264902087,6.54809,3326.6,3325.6,3.00696]
[1722264902296,3.542,3326.6,3325.5,0.06013365]
[1722264902476,3.00634,3326.4,3325.5,3.0]
[1722264902685,3.0065,3326.2,3325.2,3.0]
[1722264902926,3.30715,3326.2,3325.2,6.00731]
[1722264903229,3.00634,3326.3,3325.4,3.00714]
[1722264903515,3.00643,3326.2,3325.5,3.06013528]
[1722264903813,3.00623,3326.5,3325.5,6.06716528]
[1722264904118,3.00631,3326.4,3325.6,0.90743053]
[1722264904270,3.00626,3326.4,3325.6,0.90743053]
[1722264904474,3.00623,3326.5,3325.6,0.90743053]
[1722264904674,5.84739,3327.0,3325.9,3.00668]
[1722264904920,0.01,3327.0,3326.1,3.00645]
[1722264905074,0.01,3327.0,3326.4,3.00617]
[1722264905286,0.01,3327.0,3326.5,3.06625713]
[1722264905498,5.8186,3327.6,3326.0,3.0]
[1722264905734,3.00568,3327.1,3326.2,3.00642]
[1722264906028,6.01078,3327.4,3326.3,6.361902]
[1722264906184,3.00589,3326.9,3326.3,3.355642]
[1722264906379,3.00595,3326.8,3326.0,3.0]
[1722264906685,3.00599,3326.7,3326.0,3.0]
[1722264907048,3.00589,3326.9,3326.0,3.0]
[1722264907179,3.00589,3326.9,3326.1,1.1529147]
[1722264907496,8.82382,3327.6,3326.2,0.06012715]
[1722264907693,6.54722,3327.6,3326.5,3.0061]
[1722264907908,6.54722,3327.6,3326.5,3.06621544]
[1722264908128,6.54722,3327.6,3326.7,3.00594]
[1722264908467,5.9841,3328.1,3327.0,3.00568]
[1722264908729,3.00426,3328.6,3327.5,3.00519]
[1722264908927,3.542,3328.5,3327.4,3.00528]
[1722264909092,3.542,3328.5,3327.6,3.0051]
[1722264909295,6.54641,3328.5,3327.5,1.084458]
[1722264909526,3.542,3328.5,3327.6,3.00509]
[1722264909764,3.542,3328.5,3327.7,3.00507]
[1722264910047,3.542,3328.5,3327.6,3.00515]
[1722264910249,3.542,3328.5,3327.8,3.00492]
[1722264910434,3.542,3328.5,3327.5,0.534458]
[1722264910643,3.542,3328.5,3327.6,3.61519028]
[1722264910846,3.542,3328.5,3327.8,3.00498]
[1722264911004,3.00425,3328.7,3327.9,0.0600914]
[1722264911206,3.00458,3328.3,3327.2,5.522467]
[1722264911463,3.00478,3328.1,3327.2,5.522467]
[1722264911751,3.0049,3327.9,3327.3,4.1528037]
[1722264911978,3.00478,3328.1,3327.3,4.1528037]
[1722264912175,2.3859,3328.4,3327.3,4.1528037]
[1722264912176,0.012,3328.0,3327.3,4.1528037]
[1722264912344,0.012,3328.0,3326.6,6.218]
[1722264912345,3.554,3328.0,3326.6,6.218]
[1722264912555,3.00552,3327.3,3326.3,8.528777]
[1722264912744,3.00552,3327.3,3326.5,1.0468777]
[1722264912950,3.00562,3327.1,3326.5,1.0468777]
[1722264913179,6.54729,3327.5,3326.5,1.0468777]
[1722264913329,4.04647675,3327.4,3326.5,1.0468777]
[1722264913535,3.00561,3327.2,3326.5,1.0468777]
[1722264913947,3.542,3327.5,3326.5,1.0468777]
[1722264913948,3.00542,3327.4,3326.5,1.0468777]
[1722264914246,6.5473,3327.5,3326.5,4.0530177]
[1722264914473,1.04099876,3327.4,3326.6,4.0119304]
[1722264914793,3.00549,3327.3,3326.7,3.0]
[1722264914935,1.04104641,3327.2,3326.6,1.0119304]
[1722264915274,3.00549,3327.3,3326.5,1.0468777]
[1722264915451,1.04105234,3327.2,3326.5,1.0468777]
[1722264915647,6.54729,3327.5,3326.5,1.10699396]
[1722264915882,3.00544,3327.3,3326.5,1.10699396]
[1722264916072,3.00571,3327.0,3326.4,3.0]
[1722264916265,3.00559,3327.2,3326.3,3.0]
[1722264916467,3.00572,3327.0,3326.3,3.0]
[1722264916668,1.04111857,3326.9,3326.2,3.0]
[1722264916910,1.04120789,3326.8,3326.2,3.0]
[1722264917209,3.00594,3326.8,3326.2,3.0]
[1722264917416,1.04121819,3326.7,3326.2,3.0]
[1722264917566,1.04121819,3326.6,3326.2,3.0]
[1722264917768,3.00594,3326.8,3326.2,3.0]
[1722264918017,4.04723944,3326.7,3326.2,3.0]
[1722264918174,1.04124944,3326.6,3326.2,3.0]
[1722264918382,4.04732944,3326.6,3326.2,3.0]
[1722264918581,3.961308,3326.8,3326.2,3.0]
[1722264918784,4.0472224,3326.7,3326.2,3.0]
[1722264918963,3.00599,3326.7,3326.2,3.0]
[1722264919191,0.955368,3326.8,3326.2,3.0]
[1722264919397,1.04120804,3326.7,3326.2,3.0]
[1722264919617,3.00582,3326.9,3326.2,3.0]
[1722264919774,3.00605,3326.7,3326.2,3.0]
[1722264919977,1.04122037,3326.6,3326.2,3.0]
[1722264920172,3.00605,3326.7,3326.2,3.0]
[1722264920370,1.0412237,3326.6,3326.2,3.0]
[1722264920683,3.0059,3326.8,3326.2,3.0]
[1722264920889,1.04124974,3326.7,3326.2,3.0]
[1722264921092,3.0059,3326.8,3326.2,3.0]
[1722264921093,4.04731974,3326.6,3326.2,3.0]
[1722264921295,1.04124974,3326.5,3325.7,6.00686]
[1722264921495,1.04124974,3326.5,3325.8,0.55]
[1722264921701,1.04124974,3326.5,3325.8,3.55]
[1722264922580,3.00627,3326.4,3325.8,0.55]
[1722264922782,1.04124974,3326.3,3325.6,0.55]
[1722264923087,6.54861,3326.0,3325.1,5.522467]
[1722264923310,1.04151811,3325.9,3324.8,3.00765]
[1722264923512,3.00703,3325.6,3324.7,3.00775]
[1722264923857,3.00701,3325.6,3324.8,0.8530217]
[1722264924151,3.00691,3325.7,3324.8,0.8530217]
[1722264924310,1.04154447,3325.6,3324.8,0.8530217]
[1722264924494,3.00697,3325.6,3324.8,0.8530217]
[1722264924691,6.01365,3325.8,3324.8,6.8607117]
[1722264924918,1.04155445,3325.7,3324.9,0.98684817]
[1722264925140,4.04857445,3325.6,3324.8,0.8530217]
[1722264925314,6.54865,3326.0,3324.8,3.8607017]
[1722264925514,6.01391,3325.7,3324.8,3.8607017]
[1722264925835,2.34650393,3325.9,3324.8,3.8607017]
[1722264925836,3.0068,3325.8,3324.8,0.8530217]
[1722264926042,3.0068,3325.8,3324.9,3.55759]
[1722264926201,3.0068,3325.8,3325.0,0.44106117]
[1722264926392,3.00689,3325.7,3325.0,0.44106117]
[1722264926850,3.00698,3325.6,3325.0,0.44106117]
[1722264927085,3.00703,3325.6,3324.9,0.55]
[1722264927194,3.542,3326.0,3324.9,0.55]
[1722264927397,5.3536466,3325.9,3324.9,0.55]
[1722264927650,3.00694,3325.7,3324.9,0.55]
[1722264928003,3.00698,3325.6,3324.9,0.55]
[1722264928235,3.00694,3325.7,3324.9,1.29108017]
[1722264928441,3.00694,3325.7,3324.9,4.29108017]
[1722264929321,3.542,3325.5,3324.6,5.522467]
[1722264929643,3.0074,3325.2,3324.6,5.522467]
[1722264929859,4.31289573,3325.1,3324.2,3.00823]
[1722264929998,3.00728,3325.3,3324.3,0.06015507]
[1722264929999,3.00724,3325.3,3324.3,0.06015507]
[1722264930202,1.56928141,3326.0,3324.4,0.0601503]
[1722264930203,3.55,3326.0,3324.4,0.0601503]
[1722264930562,5.35403287,3325.9,3324.9,3.00754]
[1722264930856,1.30568637,3325.8,3325.0,0.06014161]
[1722264931040,1.30568637,3325.8,3324.9,3.00752]
[1722264931245,1.30568637,3325.7,3325.0,0.06014057]
[1722264931459,3.00708,3325.5,3324.9,0.55]
[1722264931756,3.00692,3325.7,3325.0,0.06014794]
[1722264932039,1.30575435,3325.6,3324.7,3.0]
[1722264932262,3.00724,3325.3,3324.4,3.00802]
[1722264932467,3.00735,3325.2,3324.3,0.55]
[1722264932637,3.00725,3325.3,3324.4,0.06015154]
[1722264933030,1.30527972,3325.2,3324.4,0.06015154]
[1722264933225,4.31262972,3325.2,3324.4,0.8910492]
[1722264933527,3.542,3325.5,3324.4,0.06015154]
[1722264933528,1.30476109,3325.1,3324.4,0.06015154]
[1722264933749,3.00742,3325.2,3324.4,0.06015154]
[1722264933943,3.00744,3325.1,3324.4,0.06015154]
[1722264934338,6.54952,3325.0,3324.4,0.06015154]
[1722264934540,4.9667362,3324.9,3324.1,10.8771502]
[1722264934749,0.654952,3324.9,3324.1,10.8771502]
[1722264935078,3.542,3325.0,3324.1,13.8854102]
[1722264935232,6.54954,3325.0,3324.2,0.61015488]
[1722264935438,6.54954,3325.0,3324.3,0.06015488]
[1722264935439,3.542,3325.0,3324.3,0.06015488]
[1722264936151,3.542,3325.5,3324.5,3.00788]
[1722264936360,1.30410883,3325.4,3324.6,3.06801797]
[1722264936554,3.542,3325.5,3324.6,0.6076068]
[1722264936756,3.00715,3325.4,3324.3,0.0601498]
[1722264936980,3.00715,3325.4,3324.4,3.55803]
[1722264937203,3.00725,3325.3,3324.5,0.06014982]
[1722264937338,3.00716,3325.4,3324.5,0.06014986]
[1722264937542,3.00746,3325.1,3324.5,0.0601515]
[1722264937836,3.00746,3325.1,3324.4,0.55]
[1722264937837,1.30237049,3325.0,3324.4,0.55]
[1722264938140,3.542,3325.5,3324.2,3.0]
[1722264938141,3.00744,3325.1,3324.3,0.55]
[1722264938356,3.00685,3325.8,3324.2,3.0]
[1722264938357,6.54952,3325.0,3324.2,3.0]
[1722264939152,3.542,3325.0,3324.2,3.0]
[1722264939414,3.542,3324.4,3324.1,10.8771502]
[1722264939542,3.542,3324.3,3324.2,0.55]
[1722264939741,3.542,3324.8,3324.2,0.55]
[1722264939986,3.00753,3325.0,3324.2,0.55]
[1722264940194,2.34339931,3324.9,3324.2,0.55]
[1722264940408,1.30146393,3324.8,3324.2,0.55]
[1722264940703,3.00753,3325.0,3324.2,0.55]
[1722264940882,5.31725,3325.2,3324.2,0.55]
[1722264940883,2.3099,3325.2,3324.2,0.55]
[1722264941062,1.04191099,3324.9,3324.2,0.55]
[1722264941268,3.00751,3325.0,3324.2,0.55]
[1722264941461,1.3006961,3324.9,3324.2,0.55]
[1722264941659,1.0419292,3324.8,3324.2,0.55]
[1722264941960,3.00755,3325.0,3324.2,0.55]
[1722264942200,3.00774,3324.8,3324.2,0.55]
[1722264942518,3.00746,3325.1,3324.2,0.55]
[1722264942665,1.04184329,3325.0,3324.3,0.06015497]
[1722264942859,3.00729,3325.3,3324.3,0.06015497]
[1722264943055,3.00743,3325.1,3324.3,0.06015497]
[1722264943259,4.04932888,3325.0,3324.3,0.06015497]
[1722264943456,3.542,3325.5,3324.3,0.06015497]
[1722264943764,1.04179654,3325.4,3324.7,3.00778]
[1722264944073,3.00708,3325.5,3324.8,0.61014413]
[1722264944273,3.0068,3325.8,3324.8,0.61014413]
[1722264944473,1.04160026,3325.7,3324.8,0.61014413]
[1722264944680,2.4948,3326.1,3324.9,0.30056441]
[1722264944884,3.0068,3325.8,3325.0,0.06014071]
[1722264945202,1.04158679,3325.7,3325.0,0.61014073]
[1722264945359,3.00635,3326.3,3325.0,0.61014073]
[1722264945562,4.04794347,3326.2,3325.0,3.61757073]
[1722264945811,4.04802347,3326.1,3325.1,6.39922351]
[1722264946017,1.04150347,3326.0,3325.0,0.55]
[1722264946175,3.00698,3325.6,3325.0,0.55]
[1722264946379,3.00688,3325.7,3325.0,0.55]
[1722264946577,3.00633,3326.4,3325.0,0.55]
[1722264946784,3.00686,3325.8,3325.0,0.55]
[1722264946982,3.00686,3325.8,3324.9,0.55]
[1722264946983,1.04156041,3325.7,3324.9,0.55]
[1722264947221,1.04156041,3325.6,3325.0,0.355]
[1722264947386,3.00703,3325.6,3325.1,0.55]
[1722264947563,1.04157469,3325.5,3324.8,3.0]
[1722264947760,3.0069,3325.7,3324.9,0.55]
[1722264947980,1.0415934,3325.6,3324.9,0.06014291]
[1722264948181,3.00697,3325.6,3324.9,1.2614852]
[1722264948406,1.04156021,3325.5,3324.9,1.2614852]
[1722264948626,3.01663,3326.0,3324.9,1.2614852]
[1722264948627,0.01,3326.0,3324.9,0.06014291]
[1722264948914,0.01,3326.0,3324.8,0.06015017]
[1722264948915,3.00716,3325.4,3324.8,0.06015017]
[1722264949220,4.04883229,3325.3,3324.8,0.06015017]
[1722264949424,1.04157229,3325.2,3324.8,0.06015017]
[1722264949584,3.00709,3325.5,3324.4,5.522467]
[1722264949585,3.00731,3325.3,3324.4,5.522467]
[1722264950079,3.00739,3325.2,3324.5,0.06015198]
[1722264950263,1.04173851,3325.1,3324.5,0.61841388]
[1722264950461,3.00714,3325.5,3324.5,0.61841388]
[1722264950665,3.00734,3325.2,3324.5,0.61841388]
[1722264950901,3.00762,3324.9,3324.4,5.522467]
[1722264951124,1.04169327,3324.8,3324.4,5.522467]
[1722264951284,1.04169327,3325.0,3324.4,5.522467]
[1722264951470,1.04169327,3324.9,3324.4,5.522467]
[1722264952368,4.04930327,3324.9,3324.4,5.522467]